[Event "94th ARG-ch Superior 2019"]
[Site "Buenos Aires"]
[Date "2019.09.26"]
[Round "11.6"]
[White "Valerga, Diego"]
[Black "Flores, Diego"]
[Result "1/2-1/2"]
[ECO "A00"]
[WhiteElo "2418"]
[BlackElo "2602"]
[Annotator "Igor"]
[PlyCount "61"]
[EventDate "2019.09.16"]
[EventType "tourn"]
[EventCountry "ARG"]
[TimeControl "40/5400+30:1800+30"]

{[%evp 0,13,32,25,26,-11,10,-19,6,4,26,12,14,3,-4,-7]} 1. d4 Nf6 2. c4 e6 3. Nc3 Bb4 4. Nf3 b6 5. Bg5 Bb7 6. e3 h6 7. Bh4 g5 8. Bg3 Ne4 9. Nd2 Bxc3 10. bxc3 Nxg3 11. fxg3 d6 12. e4 Nd7 13. Bd3 Qf6 14. Nf3 g4 15. Ng1 h5 16. Ne2 Qg5 17. Qd2 Qxd2+ 18. Kxd2 Ke7 19. Raf1 h4 20. Rf4 Rag8 21. Ke3 Rg7 22. gxh4 Rxh4 23. Ng3 Rgh7 24. Be2 Rxh2 25. Rxh2 Rxh2 26. Rxg4 Nf6 27. Rg5 Rh8 28. Bf3 Ba6 29. Be2 Bb7 30. Bf3 Ba6 31. Be2 1/2-1/2